Workbook

Sheet 0
E2: Cech pro zateplování budov ČR, o.s. Zelený pruh 1294/50, 147 08 Praha 4, www.czb.cz, czb@czb.cz
H4: KALKULÁTOR PRO STANOVENÍ POČTU KOTEV
H5: V ETICS POMOCÍ ZJEDNODUŠENÉHO NÁVRHU
H6: dle článku 5.4.3 ČSN 73 2902 Vnější tepelně izolační kompozitní systémy (ETICS)
H7: – Navrhování a použití mechanického upevnění pro spojení s podkladem
C9: Tento kalkulátor navrhuje počet kotev v ETICS pomocí zjednodušeného návrhu dle článku 5.4.3 ČSN 73 2902, na základě zvolených
C10: charakteristik objektu (výška, větrová oblast, kategorie terénu, podkladní materiál, tepelněizolační materiál) a pro zvolenou kotvu.
C12: Zjednodušený výpočet pomocí tohoto kalkulátoru lze provést výhradně pro kotvy, jejichž shoda byla prokázána podle Řídících pokynů
C13: ETAG 014 a jsou součástí ETICS podle dokumentace výrobce ETICS, který prokázal shodu systému postupem podle Řídících pokynů ETAG 004.
C14: Za využití hodnot z tohoto kalkulátoru je plně odpovědná osoba, která ho používá. Pokud nejsou výsledky opatřeny autorizačním razítkem
C15: projektanta, je nutno uvedené výsledky v protokolu považovat pouze za orientační.
C17: Kalkulátor obsahuje databázi kotev značky BRAVOLL od společnosti ITW Construction Products CZ s.r.o.
C19: Výpočet probíhá formou průvodce - v prvním kroku se zadají charakteristiky objektu, ve druhém kroku se z nabídky všech kotev vhodných
C20: pro daný typ podkladu a izolantu zvolí jedna kotva a upřesní se podkladní materiál a ve třetím kroku se zobrazí vypočítané výsledky,
C21: tj. vhodnost zvolené kotvy, počty kotev pro okrajové a vnitřní oblasti fasády a také schéma doporučeného rozmístění kotev.
C23: Kalkulátor využívá jako zdroj informací údaje z ČSN 73 2902:2011 a z ČSN EN 1991-1-4.
C24: Použité části ČSN 73 2902:2011 jsou vydány se souhlasem Úřadu pro technickou normalizaci, metrologii a státní zkušebnictví.
C27: ="© 2011"&IF(YEAR(TODAY())>2011,"-"&YEAR(TODAY()),"")&" Cech pro zateplování budov České republiky." -> © 2011-2015 Cech pro zateplování budov České republiky. | U27: TRUE
C28: Autoři Zdeněk Kobza & Martin Matějka.
C29: Verze 1.17

Sheet 1
G1: 1. OBJEKT
C3: VÝŠKA OBJEKTU 1 | G3: VĚTROVÁ OBLAST 1 | K3: výběr | M3: PODKLADNÍ MATERIÁL dle ETAG 014 2
D11: =CHOOSE(výška_,"do 10","do 15","do 25","do 37") ->  | H11: =CHOOSE(větrováoblast_,"I","II","III","IV") -> 
C12: KATEGORIE TERÉNU | N12: =CHOOSE(podklad_,"A","B","C","D","E","–") -> 
M13: TEPELNĚIZOLAČNÍ MATERIÁL 3 4 | R13: ŠÍŘKA DESKY
N18: =CHOOSE(izolant_,"minerální vlna Frontrock Max E","minerální vlna TF profi","pěnový polystyrén 70F") ->  | R18: =CHOOSE(deska_,"500×1000","600×1000") -> 
N19: volitelná hodnota Rpanel ze zkoušky protažením 5|
M21: FALSE | O21: Rpanel =- | Q21: kN
D23: =CHOOSE(terén_,"I","II","III","IV") -> 
U25: =AND(výška_>0,větrováoblast_>0,terén_>0,podklad_>0,izolant_>0,IF(myRpanel_=TRUE,myRpanel>0,TRUE)) -> FALSE
C26: Poznámky:
B27: 1 | C27: Návrh mechanického upevnění ETICS na účinky sání větru kotvami o známých vlastnostech lze provést zjednodušeným postupem v obvyklých případech, za který se považují budovy nacházející se ve větrové oblasti I až IV podle ČSN EN 1991-1-4, u nichž proudění větru není nepříznivě ovlivněno jejich tvarem, polohou nebo překážkami v okolí a jejichž výška nad okolním terénem po horní hranu atiky nebo římsy nepřesáhne 38 m. Za obvyklý případ se nepovažují budovy umístěné na izolovaných kopcích, při horní hraně dlouhých svahů, budovy nejméně dvakrát vyšší než průměrná výška okolní zástavby, budovy neobvyklého tvaru apod.
B28: 2 | C28: Podkladní materiál se v ČSN 73 2902 označuje jako nosná vrstva podkladu, která je definovaná jako vrstva, do níž bude kotva nebo jiný mechanický upevňovací prostředek přenášet zatížení.
B29: 3 | C29: Tento kalkulátor uvažuje s obvyklou skladbou ETICS. Za obvyklý případ se považují ETICS s charakteristickou plošnou hmotností vnějšího souvrství nejvýše 20 kg/m², jejichž tepelná izolace má takové mechanické vlastnosti, že vlastní hmotnost ETICS bezpečně přenese svou smykovou odolností a je s podkladem dostatečně spojena vrstvou lepicí hmoty.
B30: 4 | C30: Tepelněizolační materiál musí mít pevnost v tahu kolmo k čelním plochám třídy nejméně TR 100 (pěnový polystyrén), TR 10 (minerální vlna s podélným vláknem), TR 80 (minerální vlna s kolmým vláknem) podle ČSN EN 13162.
B31: 5 | C31: Odolnost proti protažení kotvy v ploše desky Rpanel se zkouší postupy dle ETAG 004 a pro nejmenší deklarovanou tloušťku. Tyto hodnoty jsou uvedeny v ETA. Při použití větší tloušťky tepelné izolace se odolnosti proti protažení Rpanel uvažují buď základní hodnotou podle dokumentace ETICS nebo nezávisle ověřenou hodnotou z doplňkových zkoušek systému.

Sheet 2
G1: 2. KOTVY
C3: TYP | G3: kotva | H3: typ | I3: montáž | K3: HODNOTA ÚNOSTNOSTI NRk | S3: ZPŮSOB KOTVENÍ
L7: NRk =- | N7: kN | S7: 1 | T7: =CHOOSE(kotvení_,0.68,0.8) -> 0.68
C8: 3 | D8: =CHOOSE(typ_,"šroubovací","zatloukací","libovolný") -> libovolný | S8: VÝROBCE
C9: MONTÁŽ | K9: specifikace podkladu
S12: 1 | T12: =CHOOSE(výrobce_,"Bravoll","Ejot","Fischer","Hilti","Kew","Koelner","libovolný") -> Bravoll
C14: 1 | D14: =CHOOSE(montáž_,"povrchová","zápustná") -> povrchová
C15: PŘÍDAVNÝ IZOLAČNÍ TALÍŘ
C21: 1 | D21: =CHOOSE(talířek_,0,IF(montáž_=1,"BRAVOLL IT PTH 100","ZT 100")) -> 0
C22: =IF(izolant_="",1,izolant_)&montáž_ -> 11 | J22: =AND(výrobce_>0,typ_>0,talířek_>0,myHmoždinka<>"",IF(myNrk_=2,myNrk>0,myPodklad<>"")) -> FALSE
C24: Poznámky:
C25: Kotvy, posouzené podle postupů ETAG 014, lze navrhnout a použít pouze pro přenesení účinků zatížení, působícího rovnoběžně s osou kotvy.
C26: V mechanicky upevňovaných ETICS se smějí použít pouze kotvy s charakteristickou únosností v tahu NRk stanovenou podle postupů ETAG 014. Hodnotu NRk
C27: uvádí výrobce v dokumentaci ETICS. Pokud ve schválené dokumentaci kotvy není uvedena její charakteristická únosnost NRk pro druh materiálu nosné vrstvy
C28: podkladu zjištěný na stavbě, stanoví se tato zkouškami v laboratoři a/nebo in situ podle přílohy A s vyhodnocením podle čl. 5.4.1.3.
C29: Zjednodušený výpočet pomocí tohoto kalkulátoru lze provést výhradně pro kotvy, jejichž shoda byla prokázána podle Řídících pokynů
C30: ETAG 014 a jsou součástí ETICS podle dokumentace výrobce ETICS, který prokázal shodu systému postupem podle Řídících pokynů ETAG 004.

Sheet 3
G1: 3. VÝSLEDKY
C3: OBJEKT | J3: KOTVY
C6: ="výška objektu = "&výška&" m" ->  | J6: ="kotva = "&myHmoždinka -> kotva =
C7: ="větrová oblast = "&větrováoblast ->  | J7: ="ETA číslo = "&VLOOKUP(myHmoždinka,hmoDB,6,) -> 
C8: ="kategorie terénu = "&terén ->  | J8: ="typ = "&VLOOKUP(myHmoždinka,hmoDB,3,) -> 
C9: ="kategorie podkladu = "&podklad ->  | J9: ="montáž = "&montáž -> montáž = povrchová
C10: ="izolant = "&izolant&", "&LEFT(deska,3)&" mm" ->  | J10: =IF(montáž_=1,IF(talířek=0,"přídavný izolační talíř nepoužit","přídavný izolační talíř = "&talířek),IF(talířek=0,"přídavný zápustný talíř = žádný, zápustný přípravek = BRAVOLL ZP","přídavný zápustný talíř = BRAVOLL ZT 100")) -> přídavný izolační talíř nepoužit
C11: =IF(myRpanel=0,"","Rpanel ze zkoušky protažením = "&myRpanel&" kN") ->  | J11: =IF(myNrk_=2,"hodnota Nrk z výtažných zkoušek = "&myNrk&" kN","specifikace podkladu = "&myPodklad) -> specifikace podkladu =
C13: VÝPOČTY:
C15: Objekt: | F15: třída únosnosti | K15: 0,10 | L15: 0,12 | M15: 0,15 | N15: 0,20 | O15: 0,25 | P15: 0,30 | Q15: 0,40 | R15: 0,50
C16: =větrováoblast&";"&terén&";"&výška ->  | F16: kotev na m² (okrajové oblasti) | K16: =VLOOKUP(objekt&"/"&K$15,počtyhmoždinek,7,) -> 
F17: kotev na m² (vnitřní oblasti) | K17: =IF(K16="–","–",CEILING(MAX(75%*K16,6),2)) -> 
F18: kotev na m² (okraj pro 15 m) | K18: =VLOOKUP(větrováoblast&";"&terén&";"&"do 15/"&K$15,počtyhmoždinek,7,) -> 
F19: kotev na m² (vnitřní pro 15 m) | K19: =IF(K18="–","–",CEILING(MAX(75%*K18,6),2)) -> 
C21: Izolant: | F21: gMb pro izolant | I21: =VLOOKUP(izolant_,izolanty,3,) -> 
C22: =VLOOKUP(izolant_,izolanty,2,) ->  | F22: Rpanel,sm | I22: =IF(myRpanel_=TRUE,myRpanel,VLOOKUP(izolant&montáž&VALUE(RIGHT(talířek,3)),Rpanely,COLUMN(param!$K$6)-COLUMN(param!$G$6)+1,)) ->  | J22: kN
F23: Rjoint,sm | I23: =VLOOKUP(izolant_,izolanty,5,) ->  | J23: kN
F24: Rd,hm | I24: =kotvení*I22/I21 ->  | J24: kN
F25: třída únosnosti hm. | I25: =INDEX(třídy,1,MATCH(I24,Rmin)) -> 
C27: Podklad: | F27: kategorie dle ETAG 014 | J27: =VLOOKUP(podklad_,podklady,3,) ->  | K27: =IF(J27="–","",VLOOKUP(podklad_,podklady,2,)) -> 
F28: gMc pro šroubovací kotvy | J28: =IF(podklad<>"–",VLOOKUP(podklad_,podklady,4,),VLOOKUP(myHmoždinka&"_"&myPodklad,hmoDBi,14,)) -> 
F29: gMc pro zatloukací kotvy | J29: =IF(podklad<>"–",VLOOKUP(podklad_,podklady,5,),VLOOKUP(myHmoždinka&"_"&myPodklad,hmoDBi,14,)) -> 
C31: Kotva: | F31: typ | I31: =VLOOKUP(myHmoždinka,hmoDB,3,) -> 
F32: NRk | I32: =IF(myNrk_=2,myNrk,VLOOKUP(myHmoždinka&"_"&myPodklad,hmoDBi,13,)) ->  | J32: kN
F33: Rd,hm | I33: =I32/IF(I31="šroubovací",J28,J29) ->  | J33: kN
F34: třída únosnosti hm. | I34: =IF(I33<0.1,"0,00",INDEX(třídy,1,MATCH(I33,Rmin))) -> 
F35: třída únosnosti | I35: =IF(I34<I25,I34,I25) -> 
C39: VÝSLEDEK VÝPOČTŮ
C42: ="Zvolená kotva "&IF(check=FALSE,"VYHOVUJE","NEVYHOVUJE")&" pro kotvení zvoleného tepelněizolačního materiálu na zvoleném objektu"&IF(check=FALSE,".",",") -> 
C43: =IF(check=TRUE,"z důvodu příliš vysokého počtu kotev na 1 m² (maximum je 16 ks/m²).","") -> 
C45: POČTY A ROZMÍSTĚNÍ KOTEV | J45: =IF(deska_=2,"Počty kotev jsou uvedeny v ks/1,2 m², tj. na 2 desky 600x1000 mm.","Počty kotev jsou uvedeny v ks/m², tj. na 2 desky 500x1000 mm.") -> Počty kotev jsou uvedeny v ks/m², tj. na 2 desky 500x1000 mm.
D48: Doporučené počty kotev 1 pro okrajové a vnitřní oblasti fasády jsou:
D50: okraj | E50: vnitřní oblast | H50: okraj
D51: A2 | E51: =IF(hmoTřída="0,00","–",IF(výška_<3,"",HLOOKUP(I35,$K$15:$R$19,3,))) ->  | F51: B2 | G51: =IF(deska_=2,HLOOKUP(E51,rozmístění600x1000,2,),E51) ->  | H51: A2 | I51: pro výšku nad 15 m 2
C52: =IF(hmoTřída="0,00","–",IF(výška_<3,"",HLOOKUP(I35,$K$15:$R$19,2,))) ->  | D52: =IF(deska_=2,HLOOKUP(C52,rozmístění600x1000,2,),C52) ->  | F52: =G51&IF(deska_=2," ks/1,2 m²"," ks/m²") ->  | H52: =D52 -> 
D53: A1 | E53: =IF(hmoTřída="0,00","–",HLOOKUP(I35,$K$15:$R$19,IF(výška_<3,3,5),)) ->  | F53: B1 | G53: =IF(deska_=2,HLOOKUP(E53,rozmístění600x1000,2,),E53) ->  | H53: A1
C54: =IF(hmoTřída="0,00","–",HLOOKUP(I35,$K$15:$R$19,IF(výška_<3,2,4),)) ->  | D54: =IF(deska_=2,HLOOKUP(C54,rozmístění600x1000,2,),C54) ->  | F54: =G53&IF(deska_=2," ks/1,2 m²"," ks/m²") ->  | H54: =D54 ->  | I54: =IF(výška_>2," do výšky 15 m","") -> 
I55: =OR(D54="–",H54="–",IF(výška_>2,OR(D52="–",H52="–"),FALSE)) -> 
D57: Rozmístění kotev pro okrajové oblasti fasády: | M57: Rozmístění kotev pro vnitřní oblasti 3 fasády:
D59: A2 | M59: B2
D60: =D52 ->  | M60: =G51 -> 
D66: A1 | M66: B1
D67: =D54 ->  | M67: =G53 -> 
C76: Upozornění:
C77: Zjednodušený návrh vede zejména u budov větších rozměrů a u kotev o nižší únosnosti k celkově vyšším počtům kotev na jednotku plochy. Kompletní postup pro návrh mechanického upevnění je uveden v ČSN 73 2902, která je dostupná v Informačním centru ÚNMZ nebo prostřednictvím ČSN Online (http://csnonlinefirmy.unmz.cz/ nebo http://csnonline.unmz.cz/).
C78: Za využití hodnot z tohoto kalkulátoru je plně odpovědná osoba, která ho používá. Pokud nejsou výsledky opatřeny autorizačním razítkem projektanta, je nutno uvedené výsledky v protokolu považovat pouze za orientační.
C79: Poznámky:
B80: 1 | C80: Navržený počet kotev u desek o rozměru 500x1000 mm nemá být nižší než 6 ks/m² a nemá být vyšší než 16 ks/m². U desek jiných rozměrů stanoví nejnižší a nejvyšší doporučený počet kotev výrobce v dokumentaci ETICS. U přířezů desek se počet desek a poloha kotev upraví s ohledem na jejich rozměry případně i polohu. Navržený počet kotev na m² se přizpůsobí rozměrům desek použité tepelné izolace směrem nahoru tak, aby na každou celou desku připadl počet kotev vyjádřený celým číslem. Doporučuje se, aby navržený počet kotev na m² nepřesáhl 12 kusů.
B81: 2 | C81: U budov vyšších než 15 metrů lze plochy pláště členit na dvě výšková pásma. První pásmo se stanovuje do výšky 15 metrů včetně, druhé pásmo se stanovuje od výšky 15 metrů až do celkové výšky budovy. Účinky zatížení větrem v prvním pásmu se uvažují hodnotou příslušející výšce budovy 15 metrů, účinky zatížení větrem ve druhém pásmu se uvažují hodnotou příslušející největší výšce budovy.
B82: 3 | C82: Počet kotev na m² ve vnitřní oblasti plochy (B) se může proti okrajové oblasti (A) snížit nejvýše o 25%, vždy ale musí na celou desku tepelné izolace připadat počet kotev vyjádřený celým číslem. Při počtu kotev 6 ks/ m² v okrajové oblasti plochy se počet kotev ve vnitřní oblasti plochy u desek izolačního materiálu o rozměrech 500x1000 mm nemá snižovat.

Sheet 4
H1: KALKULÁTOR PRO STANOVENÍ POČTU KOTEV
H2: V ETICS POMOCÍ ZJEDNODUŠENÉHO NÁVRHU
H3: dle článku 5.4.3 ČSN 73 2902 Vnější tepelně izolační kompozitní systémy (ETICS)
H4: – Navrhování a použití mechanického upevnění pro spojení s podkladem
C6: Stavba: | E6: DOPLŇTE NÁZEV
C7: Adresa: | E7: DOPLŇTE ADRESU
C8: Investor: | E8: DOPLŇTE INVESTORA
C9: Zpracoval: | E9: DOPLŇTE ZPRACOVATELE | J9: Datum: | L9: DOPLŇTE DATUM | O9: Razítko a podpis autorizované osoby ČKAIT1
C11: OBJEKT | J11: KOTVY
C47: VÝSLEDEK VÝPOČTŮ
C53: POČTY A ROZMÍSTĚNÍ KOTEV | J53: Počty kotev jsou uvedeny v ks/m², tj. na 2 desky 500x1000 mm.
D56: Doporučené počty kotev 2 pro okrajové a vnitřní oblasti fasády jsou:
D58: okraj | E58: vnitřní oblast | H58: okraj
D59: A2 | F59: B2 | H59: A2 | I59: pro výšku nad 15 m 3
D61: A1 | F61: B1 | H61: A1
D65: Rozmístění kotev pro okrajové oblasti fasády: | M65: Rozmístění kotev pro vnitřní oblasti 4 fasády:
D67: A2 | M67: B2
D74: A1 | M74: B1
C84: Upozornění:
B85: 1 | C85: Za využití hodnot z tohoto kalkulátoru je plně odpovědná osoba, která vystavila tento protokol. Pokud nejsou výsledky opatřeny autorizačním razítkem projektanta, je nutno uvedené výsledky v protokolu považovat pouze za orientační.
C86: Poznámky:
B87: 2 | C87: Navržený počet kotev u desek o rozměru 500x1000 mm nemá být nižší než 6 ks/m² a nemá být vyšší než 16 ks/m². U desek jiných rozměrů stanoví nejnižší a nejvyšší doporučený počet kotev výrobce v dokumentaci ETICS. U přířezů desek se počet desek a poloha kotev upraví s ohledem na jejich rozměry případně i polohu. Navržený počet kotev na m² se přizpůsobí rozměrům desek použité tepelné izolace směrem nahoru tak, aby na každou celou desku připadl počet kotev vyjádřený celým číslem. Doporučuje se, aby navržený počet kotev na m² nepřesáhl 12 kusů.
B88: 3 | C88: U budov vyšších než 15 metrů lze plochy pláště členit na dvě výšková pásma. První pásmo se stanovuje do výšky 15 metrů včetně, druhé pásmo se stanovuje od výšky 15 metrů až do celkové výšky budovy. Účinky zatížení větrem v prvním pásmu se uvažují hodnotou příslušející výšce budovy 15 metrů, účinky zatížení větrem ve druhém pásmu se uvažují hodnotou příslušející největší výšce budovy.
B89: 4 | C89: Počet kotev na m² ve vnitřní oblasti plochy (B) se může proti okrajové oblasti (A) snížit nejvýše o 25%, vždy ale musí na celou desku tepelné izolace připadat počet kotev vyjádřený celým číslem. Při počtu kotev 6 ks/ m² v okrajové oblasti plochy se počet kotev ve vnitřní oblasti plochy u desek izolačního materiálu o rozměrech 500x1000 mm nemá snižovat.
C91: ="© 2011"&IF(YEAR(TODAY())>2011,"-"&YEAR(TODAY()),"")&" Cech pro zateplování budov České republiky." -> © 2011-2015 Cech pro zateplování budov České republiky. | U91: TRUE
C92: Autoři Zdeněk Kobza & Martin Matějka.
C93: Verze 1.17

Sheet větrnéoblasti
B1: Místo | C1: Větrová
C2: oblast
B3: Benešov | C3: II
B4: Beroun | C4: II
B5: Blansko | C5: II
B6: Břeclav | C6: II
B7: Brno | C7: II
B8: Bruntál | C8: III
B9: Česká Lípa | C9: II
B10: České Budějovice | C10: II
B11: Český Krumlov | C11: II
B12: Děčín | C12: II
B13: Domažlice | C13: II
B14: Frýdek-Místek | C14: II
B15: Havlíčkův Brod | C15: II
B16: Hlinsko | C16: IV
B17: Hodonín | C17: II
B18: Hradec Králové | C18: II
B19: Cheb | C19: I
B20: Chomutov | C20: II
B21: Chrudim | C21: III
B22: Jablonec n/N | C22: III
B23: Jičín | C23: II
B24: Jihlava | C24: II
B25: Jindřichův Hradec | C25: II
B26: Karlovy Vary | C26: I
B27: Karviná | C27: II (I)
B28: Kladno | C28: II
B29: Klatovy | C29: II
B30: Kolín | C30: II
B31: Kroměříž | C31: I
B32: Kutná Hora | C32: II
B33: Liberec | C33: II
B34: Litoměřice | C34: II
B35: Louny | C35: II
B36: Mělník | C36: I
B37: Mladá Boleslav | C37: II
B38: Most | C38: II
B39: Náchod | C39: II
B40: Nový Jičín | C40: II
B41: Nymburk | C41: I
B42: Olomouc | C42: I
B43: Opava | C43: II
B44: Ostrava | C44: II
B45: Pardubice | C45: II
B46: Pelhřimov | C46: II
B47: Písek | C47: II
B48: Plzeň | C48: II
B49: Praha | C49: II (I)
B50: Prachatice | C50: II
B51: Přerov | C51: II
B52: Příbram | C52: II
B53: Prostějov | C53: II (I)
B54: Rakovník | C54: II
B55: Rokycany | C55: II
B56: Rychnov n/K | C56: II
B57: Semily | C57: III
B58: Sokolov | C58: II
B59: Strakonice | C59: II
B60: Svitavy | C60: III
B61: Šumperk | C61: II
B62: Tábor | C62: II
B63: Tachov | C63: II
B64: Tanvald | C64: V
B65: Teplice | C65: II
B66: Třebíč | C66: II
B67: Trutnov | C67: II
B68: Uherské Hradiště | C68: II
B69: Ústí nad Labem | C69: II
B70: Ústí nad Orlicí | C70: I
B71: Vsetín | C71: II
B72: Vyškov | C72: II
B73: Zlín | C73: I (II)
B74: Znojmo | C74: III
B75: Žďár n/S | C75: III

Sheet db (hidden)
B1: kotva | C1: výrobce | D1: typ | E1: izolant | F1: montáž | G1: podklad | I1: kotva | J1: podklad | K1: specifikace podkladu
B2: * | C2: =IF(výrobce="libovolný","*",výrobce) -> Bravoll | D2: =IF(typ="libovolný","*",typ) -> * | E2: =IF(izolant_=3,"EPS","MW") -> MW | F2: =montáž -> povrchová | G2: =podklad ->  | I2: =IF(myHmoždinka="","ejotherm NT U",myHmoždinka) -> ejotherm NT U | J2: =podklad ->  | K2: *
A4: index | B4: kotva | C4: výrobce | D4: typ | E4: Tuhost talířku c [kN/mm] | F4: Průměr talířku [mm] | G4: ETA číslo | H4: podklad | I4: specifikace podkladu | J4: Min. obj. hmotnost ρ [kg/dm³] | K4: Min.pevnost v tlaku β [N/mm²] | L4: Poznámka | M4: Char. únosnost NRk (kN) | N4: Souč.bezp.mont. gMc | O4: izolant | P4: montáž
A5: =B5&"_"&I5 -> BRAVOLL PTH 60/8_beton C12/15 | B5: BRAVOLL PTH 60/8 | C5: Bravoll | D5: zatloukací | E5: 0.6 | F5: 60 | G5: 05/0055 | H5: A | I5: beton C12/15 | M5: 0.6 | O5: EPS | P5: povrchová
A6: BRAVOLL PTH 60/8_beton C16/20-C50/60 | B6: BRAVOLL PTH 60/8 | C6: Bravoll | D6: zatloukací | E6: 0.6 | F6: 60 | G6: 05/0055 | H6: A | I6: beton C16/20-C50/60 | M6: 0.9 | O6: EPS | P6: povrchová
A7: BRAVOLL PTH 60/8_plná pálená cihla, Mz např.podle DIN V105-100/EN 771-1 | B7: BRAVOLL PTH 60/8 | C7: Bravoll | D7: zatloukací | E7: 0.6 | F7: 60 | G7: 05/0055 | H7: B | I7: plná pálená cihla, Mz např.podle DIN V105-100/EN 771-1 | M7: 0.9 | O7: EPS | P7: povrchová
A8: BRAVOLL PTH 60/10_beton C12/15 | B8: BRAVOLL PTH 60/10 | C8: Bravoll | D8: zatloukací | E8: 0.7 | F8: 60 | G8: 08/0166 | H8: A | I8: beton C12/15 | M8: 0.6 | O8: EPS | P8: povrchová
A9: BRAVOLL PTH 60/10_beton C16/20-C50/60 | B9: BRAVOLL PTH 60/10 | C9: Bravoll | D9: zatloukací | E9: 0.7 | F9: 60 | G9: 08/0166 | H9: A | I9: beton C16/20-C50/60 | M9: 0.9 | O9: EPS | P9: povrchová
A10: BRAVOLL PTH 60/10_plná pálená cihla, Mz např.podle DIN V105-100/EN 771-1 | B10: BRAVOLL PTH 60/10 | C10: Bravoll | D10: zatloukací | E10: 0.7 | F10: 60 | G10: 08/0166 | H10: B | I10: plná pálená cihla, Mz např.podle DIN V105-100/EN 771-1 | M10: 0.75 | O10: EPS | P10: povrchová
A11: BRAVOLL PTH 60/10_děrovaná cihla s hliněným střepem dle EN 771-1 | B11: BRAVOLL PTH 60/10 | C11: Bravoll | D11: zatloukací | E11: 0.7 | F11: 60 | G11: 08/0166 | H11: C | I11: děrovaná cihla s hliněným střepem dle EN 771-1 | M11: 0.6 | O11: EPS | P11: povrchová
A12: BRAVOLL PTH-KZ_beton C12/15 | B12: BRAVOLL PTH-KZ | C12: Bravoll | D12: zatloukací | E12: 0.7 | F12: 60 | G12: 05/0055 | H12: A | I12: beton C12/15 | M12: 0.7 | O12: MW | P12: povrchová
A13: BRAVOLL PTH-KZ_beton C16/20-C50/60 | B13: BRAVOLL PTH-KZ | C13: Bravoll | D13: zatloukací | E13: 0.7 | F13: 60 | G13: 05/0055 | H13: A | I13: beton C16/20-C50/60 | M13: 0.9 | O13: MW | P13: povrchová
A14: BRAVOLL PTH-KZ_plná pálená cihla, Mz např.podle DIN V105-100/EN 771-1 | B14: BRAVOLL PTH-KZ | C14: Bravoll | D14: zatloukací | E14: 0.7 | F14: 60 | G14: 05/0055 | H14: B | I14: plná pálená cihla, Mz např.podle DIN V105-100/EN 771-1 | M14: 0.9 | O14: MW | P14: povrchová
A15: BRAVOLL PTH-KZ_vápenopísková cihla dle EN 771-2 | B15: BRAVOLL PTH-KZ | C15: Bravoll | D15: zatloukací | E15: 0.7 | F15: 60 | G15: 05/0055 | H15: B | I15: vápenopísková cihla dle EN 771-2 | M15: 0.9 | O15: MW | P15: povrchová
A16: BRAVOLL PTH-KZ_dutinové tvárnice z lehčeného betonu dle EN 771-3 | B16: BRAVOLL PTH-KZ | C16: Bravoll | D16: zatloukací | E16: 0.7 | F16: 60 | G16: 05/0055 | H16: C | I16: dutinové tvárnice z lehčeného betonu dle EN 771-3 | M16: 0.9 | O16: MW | P16: povrchová
A17: BRAVOLL PTH-KZ_děrovaná cihla s hliněným střepem dle EN 771-1 | B17: BRAVOLL PTH-KZ | C17: Bravoll | D17: zatloukací | E17: 0.7 | F17: 60 | G17: 05/0055 | H17: C | I17: děrovaná cihla s hliněným střepem dle EN 771-1 | M17: 0.3 | O17: MW | P17: povrchová
A18: BRAVOLL PTH-KZ_vertikálně děrované cihly s hliněným střepem dle ÖNORM B6124 | B18: BRAVOLL PTH-KZ | C18: Bravoll | D18: zatloukací | E18: 0.7 | F18: 60 | G18: 05/0055 | H18: C | I18: vertikálně děrované cihly s hliněným střepem dle ÖNORM B6124 | M18: 0.5 | O18: MW | P18: povrchová
A19: BRAVOLL PTH-KZ_lehčený beton s pórovitým kamenivem dle EN 1520 LAC | B19: BRAVOLL PTH-KZ | C19: Bravoll | D19: zatloukací | E19: 0.7 | F19: 60 | G19: 05/0055 | H19: D | I19: lehčený beton s pórovitým kamenivem dle EN 1520 LAC | M19: 0.9 | O19: MW | P19: povrchová
A20: BRAVOLL PTH-KZ_beton C12/15 | B20: BRAVOLL PTH-KZ | C20: Bravoll | D20: zatloukací | E20: 0.7 | F20: 60 | G20: 05/0055 | H20: A | I20: beton C12/15 | M20: 0.7 | O20: EPS | P20: povrchová
A21: BRAVOLL PTH-KZ_beton C16/20-C50/60 | B21: BRAVOLL PTH-KZ | C21: Bravoll | D21: zatloukací | E21: 0.7 | F21: 60 | G21: 05/0055 | H21: A | I21: beton C16/20-C50/60 | M21: 0.9 | O21: EPS | P21: povrchová
A22: BRAVOLL PTH-KZ_plná pálená cihla, Mz např.podle DIN V105-100/EN 771-1 | B22: BRAVOLL PTH-KZ | C22: Bravoll | D22: zatloukací | E22: 0.7 | F22: 60 | G22: 05/0055 | H22: B | I22: plná pálená cihla, Mz např.podle DIN V105-100/EN 771-1 | M22: 0.9 | O22: EPS | P22: povrchová
A23: BRAVOLL PTH-KZ_vápenopísková cihla dle EN 771-2 | B23: BRAVOLL PTH-KZ | C23: Bravoll | D23: zatloukací | E23: 0.7 | F23: 60 | G23: 05/0055 | H23: B | I23: vápenopísková cihla dle EN 771-2 | M23: 0.9 | O23: EPS | P23: povrchová
A24: BRAVOLL PTH-KZ_dutinové tvárnice z lehčeného betonu dle EN 771-3 | B24: BRAVOLL PTH-KZ | C24: Bravoll | D24: zatloukací | E24: 0.7 | F24: 60 | G24: 05/0055 | H24: C | I24: dutinové tvárnice z lehčeného betonu dle EN 771-3 | M24: 0.9 | O24: EPS | P24: povrchová
A25: BRAVOLL PTH-KZ_děrovaná cihla s hliněným střepem dle EN 771-1 | B25: BRAVOLL PTH-KZ | C25: Bravoll | D25: zatloukací | E25: 0.7 | F25: 60 | G25: 05/0055 | H25: C | I25: děrovaná cihla s hliněným střepem dle EN 771-1 | M25: 0.3 | O25: EPS | P25: povrchová
A26: BRAVOLL PTH-KZ_vertikálně děrované cihly s hliněným střepem dle ÖNORM B6124 | B26: BRAVOLL PTH-KZ | C26: Bravoll | D26: zatloukací | E26: 0.7 | F26: 60 | G26: 05/0055 | H26: C | I26: vertikálně děrované cihly s hliněným střepem dle ÖNORM B6124 | M26: 0.5 | O26: EPS | P26: povrchová
A27: BRAVOLL PTH-KZ_lehčený beton s pórovitým kamenivem dle EN 1520 LAC | B27: BRAVOLL PTH-KZ | C27: Bravoll | D27: zatloukací | E27: 0.7 | F27: 60 | G27: 05/0055 | H27: D | I27: lehčený beton s pórovitým kamenivem dle EN 1520 LAC | M27: 0.9 | O27: EPS | P27: povrchová
A28: BRAVOLL PTH-S_beton C12/15 | B28: BRAVOLL PTH-S | C28: Bravoll | D28: šroubovací | E28: 0.9 | F28: 60 | G28: 08/0267 | H28: A | I28: beton C12/15 | M28: 1.5 | O28: MW | P28: povrchová
A29: BRAVOLL PTH-S_beton C16/20-C50/60 | B29: BRAVOLL PTH-S | C29: Bravoll | D29: šroubovací | E29: 0.9 | F29: 60 | G29: 08/0267 | H29: A | I29: beton C16/20-C50/60 | M29: 1.5 | O29: MW | P29: povrchová
A30: BRAVOLL PTH-S_plná pálená cihla, Mz např.podle DIN V105-100/EN 771-1 | B30: BRAVOLL PTH-S | C30: Bravoll | D30: šroubovací | E30: 0.9 | F30: 60 | G30: 08/0267 | H30: B | I30: plná pálená cihla, Mz např.podle DIN V105-100/EN 771-1 | M30: 1.5 | O30: MW | P30: povrchová
A31: BRAVOLL PTH-S_vápenopísková cihla dle EN 771-2 | B31: BRAVOLL PTH-S | C31: Bravoll | D31: šroubovací | E31: 0.9 | F31: 60 | G31: 08/0267 | H31: B | I31: vápenopísková cihla dle EN 771-2 | M31: 1.2 | O31: MW | P31: povrchová
A32: BRAVOLL PTH-S_dutinové tvárnice z lehčeného betonu dle EN 771-3 | B32: BRAVOLL PTH-S | C32: Bravoll | D32: šroubovací | E32: 0.9 | F32: 60 | G32: 08/0267 | H32: C | I32: dutinové tvárnice z lehčeného betonu dle EN 771-3 | M32: 1.5 | O32: MW | P32: povrchová
A33: BRAVOLL PTH-S_děrovaná cihla s hliněným střepem dle EN 771-1 | B33: BRAVOLL PTH-S | C33: Bravoll | D33: šroubovací | E33: 0.9 | F33: 60 | G33: 08/0267 | H33: C | I33: děrovaná cihla s hliněným střepem dle EN 771-1 | M33: 0.75 | O33: MW | P33: povrchová
A34: BRAVOLL PTH-S_vertikálně děrované cihly s hliněným střepem dle ÖNORM B6124 | B34: BRAVOLL PTH-S | C34: Bravoll | D34: šroubovací | E34: 0.9 | F34: 60 | G34: 08/0267 | H34: C | I34: vertikálně děrované cihly s hliněným střepem dle ÖNORM B6124 | M34: 0.6 | O34: MW | P34: povrchová
A35: BRAVOLL PTH-S_lehčený beton s pórovitým kamenivem dle EN 1520 LAC | B35: BRAVOLL PTH-S | C35: Bravoll | D35: šroubovací | E35: 0.9 | F35: 60 | G35: 08/0267 | H35: D | I35: lehčený beton s pórovitým kamenivem dle EN 1520 LAC | M35: 1 | O35: MW | P35: povrchová
A36: BRAVOLL PTH-S_pórobeton P2-400 dle EN 771-4 | B36: BRAVOLL PTH-S | C36: Bravoll | D36: šroubovací | E36: 0.9 | F36: 60 | G36: 08/0267 | H36: E | I36: pórobeton P2-400 dle EN 771-4 | M36: 0.6 | O36: MW | P36: povrchová
A37: BRAVOLL PTH-S_beton C12/15 | B37: BRAVOLL PTH-S | C37: Bravoll | D37: šroubovací | E37: 0.9 | F37: 60 | G37: 08/0267 | H37: A | I37: beton C12/15 | M37: 1.5 | O37: MW | P37: zápustná
A38: BRAVOLL PTH-S_beton C16/20-C50/60 | B38: BRAVOLL PTH-S | C38: Bravoll | D38: šroubovací | E38: 0.9 | F38: 60 | G38: 08/0267 | H38: A | I38: beton C16/20-C50/60 | M38: 1.5 | O38: MW | P38: zápustná
A39: BRAVOLL PTH-S_plná pálená cihla, Mz např.podle DIN V105-100/EN 771-1 | B39: BRAVOLL PTH-S | C39: Bravoll | D39: šroubovací | E39: 0.9 | F39: 60 | G39: 08/0267 | H39: B | I39: plná pálená cihla, Mz např.podle DIN V105-100/EN 771-1 | M39: 1.5 | O39: MW | P39: zápustná
A40: BRAVOLL PTH-S_vápenopísková cihla dle EN 771-2 | B40: BRAVOLL PTH-S | C40: Bravoll | D40: šroubovací | E40: 0.9 | F40: 60 | G40: 08/0267 | H40: B | I40: vápenopísková cihla dle EN 771-2 | M40: 1.2 | O40: MW | P40: zápustná
A41: BRAVOLL PTH-S_dutinové tvárnice z lehčeného betonu dle EN 771-3 | B41: BRAVOLL PTH-S | C41: Bravoll | D41: šroubovací | E41: 0.9 | F41: 60 | G41: 08/0267 | H41: C | I41: dutinové tvárnice z lehčeného betonu dle EN 771-3 | M41: 1.5 | O41: MW | P41: zápustná
A42: =B42&"_"&I42 -> BRAVOLL PTH-S_děrovaná cihla s hliněným střepem dle EN 771-1 | B42: BRAVOLL PTH-S | C42: Bravoll | D42: šroubovací | E42: 0.9 | F42: 60 | G42: 08/0267 | H42: C | I42: děrovaná cihla s hliněným střepem dle EN 771-1 | M42: 0.75 | O42: MW | P42: zápustná
A43: BRAVOLL PTH-S_vertikálně děrované cihly s hliněným střepem dle ÖNORM B6124 | B43: BRAVOLL PTH-S | C43: Bravoll | D43: šroubovací | E43: 0.9 | F43: 60 | G43: 08/0267 | H43: C | I43: vertikálně děrované cihly s hliněným střepem dle ÖNORM B6124 | M43: 0.6 | O43: MW | P43: zápustná
A44: BRAVOLL PTH-S_lehčený beton s pórovitým kamenivem dle EN 1520 LAC | B44: BRAVOLL PTH-S | C44: Bravoll | D44: šroubovací | E44: 0.9 | F44: 60 | G44: 08/0267 | H44: D | I44: lehčený beton s pórovitým kamenivem dle EN 1520 LAC | M44: 1 | O44: MW | P44: zápustná
A45: BRAVOLL PTH-S_pórobeton P2-400 dle EN 771-4 | B45: BRAVOLL PTH-S | C45: Bravoll | D45: šroubovací | E45: 0.9 | F45: 60 | G45: 08/0267 | H45: E | I45: pórobeton P2-400 dle EN 771-4 | M45: 0.6 | O45: MW | P45: zápustná
A46: BRAVOLL PTH-S_beton C12/15 | B46: BRAVOLL PTH-S | C46: Bravoll | D46: šroubovací | E46: 0.9 | F46: 60 | G46: 08/0267 | H46: A | I46: beton C12/15 | M46: 1.5 | O46: EPS | P46: povrchová
A47: BRAVOLL PTH-S_beton C16/20-C50/60 | B47: BRAVOLL PTH-S | C47: Bravoll | D47: šroubovací | E47: 0.9 | F47: 60 | G47: 08/0267 | H47: A | I47: beton C16/20-C50/60 | M47: 1.5 | O47: EPS | P47: povrchová
A48: BRAVOLL PTH-S_plná pálená cihla, Mz např.podle DIN V105-100/EN 771-1 | B48: BRAVOLL PTH-S | C48: Bravoll | D48: šroubovací | E48: 0.9 | F48: 60 | G48: 08/0267 | H48: B | I48: plná pálená cihla, Mz např.podle DIN V105-100/EN 771-1 | M48: 1.5 | O48: EPS | P48: povrchová
A49: BRAVOLL PTH-S_vápenopísková cihla dle EN 771-2 | B49: BRAVOLL PTH-S | C49: Bravoll | D49: šroubovací | E49: 0.9 | F49: 60 | G49: 08/0267 | H49: B | I49: vápenopísková cihla dle EN 771-2 | M49: 1.2 | O49: EPS | P49: povrchová
A50: BRAVOLL PTH-S_dutinové tvárnice z lehčeného betonu dle EN 771-3 | B50: BRAVOLL PTH-S | C50: Bravoll | D50: šroubovací | E50: 0.9 | F50: 60 | G50: 08/0267 | H50: C | I50: dutinové tvárnice z lehčeného betonu dle EN 771-3 | M50: 1.5 | O50: EPS | P50: povrchová
A51: BRAVOLL PTH-S_děrovaná cihla s hliněným střepem dle EN 771-1 | B51: BRAVOLL PTH-S | C51: Bravoll | D51: šroubovací | E51: 0.9 | F51: 60 | G51: 08/0267 | H51: C | I51: děrovaná cihla s hliněným střepem dle EN 771-1 | M51: 0.75 | O51: EPS | P51: povrchová
A52: BRAVOLL PTH-S_vertikálně děrované cihly s hliněným střepem dle ÖNORM B6124 | B52: BRAVOLL PTH-S | C52: Bravoll | D52: šroubovací | E52: 0.9 | F52: 60 | G52: 08/0267 | H52: C | I52: vertikálně děrované cihly s hliněným střepem dle ÖNORM B6124 | M52: 0.6 | O52: EPS | P52: povrchová
A53: BRAVOLL PTH-S_lehčený beton s pórovitým kamenivem dle EN 1520 LAC | B53: BRAVOLL PTH-S | C53: Bravoll | D53: šroubovací | E53: 0.9 | F53: 60 | G53: 08/0267 | H53: D | I53: lehčený beton s pórovitým kamenivem dle EN 1520 LAC | M53: 1 | O53: EPS | P53: povrchová
A54: BRAVOLL PTH-S_pórobeton P2-400 dle EN 771-4 | B54: BRAVOLL PTH-S | C54: Bravoll | D54: šroubovací | E54: 0.9 | F54: 60 | G54: 08/0267 | H54: E | I54: pórobeton P2-400 dle EN 771-4 | M54: 0.6 | O54: EPS | P54: povrchová
A55: BRAVOLL PTH-S_beton C12/15 | B55: BRAVOLL PTH-S | C55: Bravoll | D55: šroubovací | E55: 0.9 | F55: 60 | G55: 08/0267 | H55: A | I55: beton C12/15 | M55: 1.5 | O55: EPS | P55: zápustná
A56: BRAVOLL PTH-S_beton C16/20-C50/60 | B56: BRAVOLL PTH-S | C56: Bravoll | D56: šroubovací | E56: 0.9 | F56: 60 | G56: 08/0267 | H56: A | I56: beton C16/20-C50/60 | M56: 1.5 | O56: EPS | P56: zápustná
A57: BRAVOLL PTH-S_plná pálená cihla, Mz např.podle DIN V105-100/EN 771-1 | B57: BRAVOLL PTH-S | C57: Bravoll | D57: šroubovací | E57: 0.9 | F57: 60 | G57: 08/0267 | H57: B | I57: plná pálená cihla, Mz např.podle DIN V105-100/EN 771-1 | M57: 1.5 | O57: EPS | P57: zápustná
A58: BRAVOLL PTH-S_vápenopísková cihla dle EN 771-2 | B58: BRAVOLL PTH-S | C58: Bravoll | D58: šroubovací | E58: 0.9 | F58: 60 | G58: 08/0267 | H58: B | I58: vápenopísková cihla dle EN 771-2 | M58: 1.2 | O58: EPS | P58: zápustná
A59: BRAVOLL PTH-S_dutinové tvárnice z lehčeného betonu dle EN 771-3 | B59: BRAVOLL PTH-S | C59: Bravoll | D59: šroubovací | E59: 0.9 | F59: 60 | G59: 08/0267 | H59: C | I59: dutinové tvárnice z lehčeného betonu dle EN 771-3 | M59: 1.5 | O59: EPS | P59: zápustná
A60: BRAVOLL PTH-S_děrovaná cihla s hliněným střepem dle EN 771-1 | B60: BRAVOLL PTH-S | C60: Bravoll | D60: šroubovací | E60: 0.9 | F60: 60 | G60: 08/0267 | H60: C | I60: děrovaná cihla s hliněným střepem dle EN 771-1 | M60: 0.75 | O60: EPS | P60: zápustná
A61: BRAVOLL PTH-S_vertikálně děrované cihly s hliněným střepem dle ÖNORM B6124 | B61: BRAVOLL PTH-S | C61: Bravoll | D61: šroubovací | E61: 0.9 | F61: 60 | G61: 08/0267 | H61: C | I61: vertikálně děrované cihly s hliněným střepem dle ÖNORM B6124 | M61: 0.6 | O61: EPS | P61: zápustná
A62: BRAVOLL PTH-S_lehčený beton s pórovitým kamenivem dle EN 1520 LAC | B62: BRAVOLL PTH-S | C62: Bravoll | D62: šroubovací | E62: 0.9 | F62: 60 | G62: 08/0267 | H62: D | I62: lehčený beton s pórovitým kamenivem dle EN 1520 LAC | M62: 1 | O62: EPS | P62: zápustná
A63: BRAVOLL PTH-S_pórobeton P2-400 dle EN 771-4 | B63: BRAVOLL PTH-S | C63: Bravoll | D63: šroubovací | E63: 0.9 | F63: 60 | G63: 08/0267 | H63: E | I63: pórobeton P2-400 dle EN 771-4 | M63: 0.6 | O63: EPS | P63: zápustná
A64: BRAVOLL PTH-SX_beton C12/15 | B64: BRAVOLL PTH-SX | C64: Bravoll | D64: šroubovací | E64: 0.7 | F64: 60 | G64: 10/0028 | H64: A | I64: beton C12/15 | M64: 1.2 | O64: EPS | P64: povrchová
A65: BRAVOLL PTH-SX_beton C16/20-C50/60 | B65: BRAVOLL PTH-SX | C65: Bravoll | D65: šroubovací | E65: 0.7 | F65: 60 | G65: 10/0028 | H65: A | I65: beton C16/20-C50/60 | M65: 1.2 | O65: EPS | P65: povrchová
A66: BRAVOLL PTH-SX_plná pálená cihla, Mz např.podle DIN V105-100/EN 771-1 | B66: BRAVOLL PTH-SX | C66: Bravoll | D66: šroubovací | E66: 0.7 | F66: 60 | G66: 10/0028 | H66: B | I66: plná pálená cihla, Mz např.podle DIN V105-100/EN 771-1 | M66: 1.2 | O66: EPS | P66: povrchová
A67: BRAVOLL PTH-SX_vápenopísková cihla dle EN 771-2 | B67: BRAVOLL PTH-SX | C67: Bravoll | D67: šroubovací | E67: 0.7 | F67: 60 | G67: 10/0028 | H67: B | I67: vápenopísková cihla dle EN 771-2 | M67: 1.2 | O67: EPS | P67: povrchová
A68: BRAVOLL PTH-SX_dutinové tvárnice z lehčeného betonu dle EN 771-3 | B68: BRAVOLL PTH-SX | C68: Bravoll | D68: šroubovací | E68: 0.7 | F68: 60 | G68: 10/0028 | H68: C | I68: dutinové tvárnice z lehčeného betonu dle EN 771-3 | M68: 1.2 | O68: EPS | P68: povrchová
A69: BRAVOLL PTH-SX_děrovaná cihla s hliněným střepem dle EN 771-1 | B69: BRAVOLL PTH-SX | C69: Bravoll | D69: šroubovací | E69: 0.7 | F69: 60 | G69: 10/0028 | H69: C | I69: děrovaná cihla s hliněným střepem dle EN 771-1 | M69: 0.6 | O69: EPS | P69: povrchová
A70: BRAVOLL PTH-SX_vertikálně děrované cihly s hliněným střepem dle ÖNORM B6124 | B70: BRAVOLL PTH-SX | C70: Bravoll | D70: šroubovací | E70: 0.7 | F70: 60 | G70: 10/0028 | H70: C | I70: vertikálně děrované cihly s hliněným střepem dle ÖNORM B6124 | M70: 0.9 | O70: EPS | P70: povrchová
A71: BRAVOLL PTH-SX_lehčený beton s pórovitým kamenivem dle EN 1520 LAC | B71: BRAVOLL PTH-SX | C71: Bravoll | D71: šroubovací | E71: 0.7 | F71: 60 | G71: 10/0028 | H71: D | I71: lehčený beton s pórovitým kamenivem dle EN 1520 LAC | M71: 0.9 | O71: EPS | P71: povrchová
A72: BRAVOLL PTH-SX_pórobeton P2-400 dle EN 771-4 | B72: BRAVOLL PTH-SX | C72: Bravoll | D72: šroubovací | E72: 0.7 | F72: 60 | G72: 10/0028 | H72: E | I72: pórobeton P2-400 dle EN 771-4 | M72: 0.5 | O72: EPS | P72: povrchová
A73: BRAVOLL PTH-SX_beton C12/15 | B73: BRAVOLL PTH-SX | C73: Bravoll | D73: šroubovací | E73: 0.7 | F73: 60 | G73: 10/0028 | H73: A | I73: beton C12/15 | M73: 1.2 | O73: EPS | P73: zápustná
A74: BRAVOLL PTH-SX_beton C16/20-C50/60 | B74: BRAVOLL PTH-SX | C74: Bravoll | D74: šroubovací | E74: 0.7 | F74: 60 | G74: 10/0028 | H74: A | I74: beton C16/20-C50/60 | M74: 1.2 | O74: EPS | P74: zápustná
A75: BRAVOLL PTH-SX_plná pálená cihla, Mz např.podle DIN V105-100/EN 771-1 | B75: BRAVOLL PTH-SX | C75: Bravoll | D75: šroubovací | E75: 0.7 | F75: 60 | G75: 10/0028 | H75: B | I75: plná pálená cihla, Mz např.podle DIN V105-100/EN 771-1 | M75: 1.2 | O75: EPS | P75: zápustná
A76: BRAVOLL PTH-SX_vápenopísková cihla dle EN 771-2 | B76: BRAVOLL PTH-SX | C76: Bravoll | D76: šroubovací | E76: 0.7 | F76: 60 | G76: 10/0028 | H76: B | I76: vápenopísková cihla dle EN 771-2 | M76: 1.2 | O76: EPS | P76: zápustná
A77: BRAVOLL PTH-SX_dutinové tvárnice z lehčeného betonu dle EN 771-3 | B77: BRAVOLL PTH-SX | C77: Bravoll | D77: šroubovací | E77: 0.7 | F77: 60 | G77: 10/0028 | H77: C | I77: dutinové tvárnice z lehčeného betonu dle EN 771-3 | M77: 1.2 | O77: EPS | P77: zápustná
A78: BRAVOLL PTH-SX_děrovaná cihla s hliněným střepem dle EN 771-1 | B78: BRAVOLL PTH-SX | C78: Bravoll | D78: šroubovací | E78: 0.7 | F78: 60 | G78: 10/0028 | H78: C | I78: děrovaná cihla s hliněným střepem dle EN 771-1 | M78: 0.6 | O78: EPS | P78: zápustná
A79: BRAVOLL PTH-SX_vertikálně děrované cihly s hliněným střepem dle ÖNORM B6124 | B79: BRAVOLL PTH-SX | C79: Bravoll | D79: šroubovací | E79: 0.7 | F79: 60 | G79: 10/0028 | H79: C | I79: vertikálně děrované cihly s hliněným střepem dle ÖNORM B6124 | M79: 0.9 | O79: EPS | P79: zápustná
A80: BRAVOLL PTH-SX_lehčený beton s pórovitým kamenivem dle EN 1520 LAC | B80: BRAVOLL PTH-SX | C80: Bravoll | D80: šroubovací | E80: 0.7 | F80: 60 | G80: 10/0028 | H80: D | I80: lehčený beton s pórovitým kamenivem dle EN 1520 LAC | M80: 0.9 | O80: EPS | P80: zápustná
A81: BRAVOLL PTH-SX_pórobeton P2-400 dle EN 771-4 | B81: BRAVOLL PTH-SX | C81: Bravoll | D81: šroubovací | E81: 0.7 | F81: 60 | G81: 10/0028 | H81: E | I81: pórobeton P2-400 dle EN 771-4 | M81: 0.5 | O81: EPS | P81: zápustná
A82: BRAVOLL PTH-X_beton C 12/15 dle EN 206-1 | B82: BRAVOLL PTH-X | C82: Bravoll | D82: zatloukací | E82: 0.6 | F82: 60 | G82: 13/0951 | H82: A | I82: beton C 12/15 dle EN 206-1 | M82: 0.6 | O82: EPS | P82: povrchová
A83: BRAVOLL PTH-X_beton C 16/20 - C 50/60 dle EN 206-1 | B83: BRAVOLL PTH-X | C83: Bravoll | D83: zatloukací | E83: 0.6 | F83: 60 | G83: 13/0951 | H83: A | I83: beton C 16/20 - C 50/60 dle EN 206-1 | M83: 0.75 | O83: EPS | P83: povrchová
A84: BRAVOLL PTH-X_zdivo z plných cihel pálených dle EN 771-1 | B84: BRAVOLL PTH-X | C84: Bravoll | D84: zatloukací | E84: 0.6 | F84: 60 | G84: 13/0951 | H84: B | I84: zdivo z plných cihel pálených dle EN 771-1 | M84: 0.75 | O84: EPS | P84: povrchová
A85: BRAVOLL PTH-X_vápenopísková cihla dle EN 771-2 | B85: BRAVOLL PTH-X | C85: Bravoll | D85: zatloukací | E85: 0.6 | F85: 60 | G85: 13/0951 | H85: B | I85: vápenopísková cihla dle EN 771-2 | M85: 0.75 | O85: EPS | P85: povrchová
A86: BRAVOLL PTH-X_dutinová tvárnice z lehčeného betonu dle EN 771-3 | B86: BRAVOLL PTH-X | C86: Bravoll | D86: zatloukací | E86: 0.6 | F86: 60 | G86: 13/0951 | H86: C | I86: dutinová tvárnice z lehčeného betonu dle EN 771-3 | M86: 0.6 | O86: EPS | P86: povrchová
A87: BRAVOLL PTH-X_lehčený beton s pórovitým kamenivem dle EN 1520 (LAC) | B87: BRAVOLL PTH-X | C87: Bravoll | D87: zatloukací | E87: 0.6 | F87: 60 | G87: 13/0951 | H87: D | I87: lehčený beton s pórovitým kamenivem dle EN 1520 (LAC) | M87: 0.5 | O87: EPS | P87: povrchová
A88: BRAVOLL PTH-X_vertikálně děrovaná cihla s hliněným střepem dle EN 771-1 | B88: BRAVOLL PTH-X | C88: Bravoll | D88: zatloukací | E88: 0.6 | F88: 60 | G88: 13/0951 | H88: C | I88: vertikálně děrovaná cihla s hliněným střepem dle EN 771-1 | M88: 0.5 | O88: EPS | P88: povrchová
A89: BRAVOLL PTH-X_vertikálně děrovaná cihla s hliněným střepem dle ÖNORM B6124 | B89: BRAVOLL PTH-X | C89: Bravoll | D89: zatloukací | E89: 0.6 | F89: 60 | G89: 13/0951 | H89: C | I89: vertikálně děrovaná cihla s hliněným střepem dle ÖNORM B6124 | M89: 0.4 | O89: EPS | P89: povrchová

Sheet rozmístěníhmoždinek (hidden)
L2: Rozmístění pro desky 600x1000
B3: 6 | L3: ks/m² | M3: – | N3: 6 | O3: 8 | P3: 10 | Q3: 12 | R3: 14 | S3: 16
L4: obrázek | M4: – | N4: =CEILING(N3*600/500,2) -> 8 | O4: 10 | P4: 12 | Q4: 16 | R4: 18 | S4: 20
B5: 4
B6: ve
B7: spárách
B10: 8
B12: 4
B13: ve
B14: spárách
B17: 10
B19: 4
B20: ve
B21: spárách
B24: 12 | J24: 12
B26: 4 | J26: 6
B27: ve | J27: ve
B28: spárách | J28: spárách
B31: 14 | J31: 14
B33: 4 | J33: 6
B34: ve | J34: ve
B35: spárách | J35: spárách
B38: 16 | J38: 16
B40: 6 | J40: 8
B41: ve | J41: ve
B42: spárách | J42: spárách
B45: 18
B47: 8
B48: ve
B49: spárách
B52: 20
B54: 8
B55: ve
B56: spárách

Sheet počtyhmoždinek (hidden)
A1: index | B1: index objektu | C1: větrová oblast | D1: kategorie terénu | E1: výška objektu | F1: třída únosnosti | G1: hmoždinek na m²
A2: =B2&"/"&F2 -> I;I;do 10/0,10 | B2: =C2&";"&D2&";"&E2 -> I;I;do 10 | C2: I | D2: I | E2: do 10 | F2: 0,10 | G2: –
A3: I;I;do 15/0,10 | B3: I;I;do 15 | C3: I | D3: =D2 -> I | E3: do 15 | F3: =F2 -> 0,10 | G3: –
A4: I;I;do 25/0,10 | B4: I;I;do 25 | C4: I | D4: =D3 -> I | E4: do 25 | F4: 0,10 | G4: –
A5: I;I;do 37/0,10 | B5: I;I;do 37 | C5: I | D5: =D4 -> I | E5: do 37 | F5: 0,10 | G5: –
A6: I;II;do 10/0,10 | B6: I;II;do 10 | C6: I | D6: II | E6: do 10 | F6: 0,10 | G6: 16
A7: I;II;do 15/0,10 | B7: I;II;do 15 | C7: I | D7: =D6 -> II | E7: do 15 | F7: 0,10 | G7: –
A8: I;II;do 25/0,10 | B8: I;II;do 25 | C8: I | D8: =D7 -> II | E8: do 25 | F8: 0,10 | G8: –
A9: I;II;do 37/0,10 | B9: I;II;do 37 | C9: I | D9: =D8 -> II | E9: do 37 | F9: 0,10 | G9: –
A10: I;III;do 10/0,10 | B10: I;III;do 10 | C10: I | D10: III | E10: do 10 | F10: 0,10 | G10: 12
A11: I;III;do 15/0,10 | B11: I;III;do 15 | C11: I | D11: =D10 -> III | E11: do 15 | F11: 0,10 | G11: 14
A12: I;III;do 25/0,10 | B12: I;III;do 25 | C12: I | D12: =D11 -> III | E12: do 25 | F12: 0,10 | G12: 16
A13: I;III;do 37/0,10 | B13: I;III;do 37 | C13: I | D13: =D12 -> III | E13: do 37 | F13: 0,10 | G13: –
A14: I;IV;do 10/0,10 | B14: I;IV;do 10 | C14: I | D14: IV | E14: do 10 | F14: 0,10 | G14: 8
A15: I;IV;do 15/0,10 | B15: I;IV;do 15 | C15: I | D15: =D14 -> IV | E15: do 15 | F15: 0,10 | G15: 10
A16: I;IV;do 25/0,10 | B16: I;IV;do 25 | C16: I | D16: =D15 -> IV | E16: do 25 | F16: 0,10 | G16: 14
A17: I;IV;do 37/0,10 | B17: I;IV;do 37 | C17: I | D17: =D16 -> IV | E17: do 37 | F17: 0,10 | G17: 14
A18: I;I;do 10/0,12 | B18: I;I;do 10 | C18: I | D18: I | E18: do 10 | F18: 0,12 | G18: –
A19: I;I;do 15/0,12 | B19: I;I;do 15 | C19: I | D19: =D18 -> I | E19: do 15 | F19: =F18 -> 0,12 | G19: –
A20: I;I;do 25/0,12 | B20: I;I;do 25 | C20: I | D20: =D19 -> I | E20: do 25 | F20: 0,12 | G20: –
A21: I;I;do 37/0,12 | B21: I;I;do 37 | C21: I | D21: =D20 -> I | E21: do 37 | F21: 0,12 | G21: –
A22: I;II;do 10/0,12 | B22: I;II;do 10 | C22: I | D22: II | E22: do 10 | F22: 0,12 | G22: 14
A23: I;II;do 15/0,12 | B23: I;II;do 15 | C23: I | D23: =D22 -> II | E23: do 15 | F23: 0,12 | G23: 16
A24: I;II;do 25/0,12 | B24: I;II;do 25 | C24: I | D24: =D23 -> II | E24: do 25 | F24: 0,12 | G24: –
A25: I;II;do 37/0,12 | B25: I;II;do 37 | C25: I | D25: =D24 -> II | E25: do 37 | F25: 0,12 | G25: –
A26: I;III;do 10/0,12 | B26: I;III;do 10 | C26: I | D26: III | E26: do 10 | F26: 0,12 | G26: 10
A27: I;III;do 15/0,12 | B27: I;III;do 15 | C27: I | D27: =D26 -> III | E27: do 15 | F27: 0,12 | G27: 12
A28: I;III;do 25/0,12 | B28: I;III;do 25 | C28: I | D28: =D27 -> III | E28: do 25 | F28: 0,12 | G28: 14
A29: I;III;do 37/0,12 | B29: I;III;do 37 | C29: I | D29: =D28 -> III | E29: do 37 | F29: 0,12 | G29: 16
A30: I;IV;do 10/0,12 | B30: I;IV;do 10 | C30: I | D30: IV | E30: do 10 | F30: 0,12 | G30: 8
A31: I;IV;do 15/0,12 | B31: I;IV;do 15 | C31: I | D31: =D30 -> IV | E31: do 15 | F31: 0,12 | G31: 8
A32: I;IV;do 25/0,12 | B32: I;IV;do 25 | C32: I | D32: =D31 -> IV | E32: do 25 | F32: 0,12 | G32: 12
A33: I;IV;do 37/0,12 | B33: I;IV;do 37 | C33: I | D33: =D32 -> IV | E33: do 37 | F33: 0,12 | G33: 12
A34: I;I;do 10/0,15 | B34: I;I;do 10 | C34: I | D34: I | E34: do 10 | F34: 0,15 | G34: 14
A35: I;I;do 15/0,15 | B35: I;I;do 15 | C35: I | D35: =D34 -> I | E35: do 15 | F35: =F34 -> 0,15 | G35: 14
A36: I;I;do 25/0,15 | B36: I;I;do 25 | C36: I | D36: =D35 -> I | E36: do 25 | F36: 0,15 | G36: 16
A37: I;I;do 37/0,15 | B37: I;I;do 37 | C37: I | D37: =D36 -> I | E37: do 37 | F37: 0,15 | G37: 16
A38: I;II;do 10/0,15 | B38: I;II;do 10 | C38: I | D38: II | E38: do 10 | F38: 0,15 | G38: 12
A39: I;II;do 15/0,15 | B39: I;II;do 15 | C39: I | D39: =D38 -> II | E39: do 15 | F39: 0,15 | G39: 12
A40: I;II;do 25/0,15 | B40: I;II;do 25 | C40: I | D40: =D39 -> II | E40: do 25 | F40: 0,15 | G40: 14
A41: I;II;do 37/0,15 | B41: I;II;do 37 | C41: I | D41: =D40 -> II | E41: do 37 | F41: 0,15 | G41: 16
A42: I;III;do 10/0,15 | B42: I;III;do 10 | C42: I | D42: III | E42: do 10 | F42: 0,15 | G42: 8
A43: I;III;do 15/0,15 | B43: I;III;do 15 | C43: I | D43: =D42 -> III | E43: do 15 | F43: 0,15 | G43: 10
A44: I;III;do 25/0,15 | B44: I;III;do 25 | C44: I | D44: =D43 -> III | E44: do 25 | F44: 0,15 | G44: 12
A45: I;III;do 37/0,15 | B45: I;III;do 37 | C45: I | D45: =D44 -> III | E45: do 37 | F45: 0,15 | G45: 12
A46: I;IV;do 10/0,15 | B46: I;IV;do 10 | C46: I | D46: IV | E46: do 10 | F46: 0,15 | G46: 6
A47: I;IV;do 15/0,15 | B47: I;IV;do 15 | C47: I | D47: =D46 -> IV | E47: do 15 | F47: 0,15 | G47: 8
A48: I;IV;do 25/0,15 | B48: I;IV;do 25 | C48: I | D48: =D47 -> IV | E48: do 25 | F48: 0,15 | G48: 10
A49: I;IV;do 37/0,15 | B49: I;IV;do 37 | C49: I | D49: =D48 -> IV | E49: do 37 | F49: 0,15 | G49: 10
A50: I;I;do 10/0,20 | B50: I;I;do 10 | C50: I | D50: I | E50: do 10 | F50: 0,20 | G50: 10
A51: I;I;do 15/0,20 | B51: I;I;do 15 | C51: I | D51: =D50 -> I | E51: do 15 | F51: =F50 -> 0,20 | G51: 12
A52: I;I;do 25/0,20 | B52: I;I;do 25 | C52: I | D52: =D51 -> I | E52: do 25 | F52: 0,20 | G52: 12
A53: I;I;do 37/0,20 | B53: I;I;do 37 | C53: I | D53: =D52 -> I | E53: do 37 | F53: 0,20 | G53: 12
A54: I;II;do 10/0,20 | B54: I;II;do 10 | C54: I | D54: II | E54: do 10 | F54: 0,20 | G54: 8
A55: I;II;do 15/0,20 | B55: I;II;do 15 | C55: I | D55: =D54 -> II | E55: do 15 | F55: 0,20 | G55: 10
A56: I;II;do 25/0,20 | B56: I;II;do 25 | C56: I | D56: =D55 -> II | E56: do 25 | F56: 0,20 | G56: 10
A57: I;II;do 37/0,20 | B57: I;II;do 37 | C57: I | D57: =D56 -> II | E57: do 37 | F57: 0,20 | G57: 12
A58: I;III;do 10/0,20 | B58: I;III;do 10 | C58: I | D58: III | E58: do 10 | F58: 0,20 | G58: 6
A59: I;III;do 15/0,20 | B59: I;III;do 15 | C59: I | D59: =D58 -> III | E59: do 15 | F59: 0,20 | G59: 8
A60: I;III;do 25/0,20 | B60: I;III;do 25 | C60: I | D60: =D59 -> III | E60: do 25 | F60: 0,20 | G60: 8
A61: I;III;do 37/0,20 | B61: I;III;do 37 | C61: I | D61: =D60 -> III | E61: do 37 | F61: 0,20 | G61: 10
A62: I;IV;do 10/0,20 | B62: I;IV;do 10 | C62: I | D62: IV | E62: do 10 | F62: 0,20 | G62: 6
A63: I;IV;do 15/0,20 | B63: I;IV;do 15 | C63: I | D63: =D62 -> IV | E63: do 15 | F63: 0,20 | G63: 6
A64: I;IV;do 25/0,20 | B64: I;IV;do 25 | C64: I | D64: =D63 -> IV | E64: do 25 | F64: 0,20 | G64: 8
A65: I;IV;do 37/0,20 | B65: I;IV;do 37 | C65: I | D65: =D64 -> IV | E65: do 37 | F65: 0,20 | G65: 8
A66: =B66&"/"&F66 -> I;I;do 10/0,25 | B66: =C66&";"&D66&";"&E66 -> I;I;do 10 | C66: I | D66: I | E66: do 10 | F66: 0,25 | G66: 8
A67: I;I;do 15/0,25 | B67: I;I;do 15 | C67: I | D67: =D66 -> I | E67: do 15 | F67: =F66 -> 0,25 | G67: 10
A68: I;I;do 25/0,25 | B68: I;I;do 25 | C68: I | D68: =D67 -> I | E68: do 25 | F68: 0,25 | G68: 10
A69: I;I;do 37/0,25 | B69: I;I;do 37 | C69: I | D69: =D68 -> I | E69: do 37 | F69: 0,25 | G69: 10
A70: I;II;do 10/0,25 | B70: I;II;do 10 | C70: I | D70: II | E70: do 10 | F70: 0,25 | G70: 8
A71: I;II;do 15/0,25 | B71: I;II;do 15 | C71: I | D71: =D70 -> II | E71: do 15 | F71: 0,25 | G71: 8
A72: I;II;do 25/0,25 | B72: I;II;do 25 | C72: I | D72: =D71 -> II | E72: do 25 | F72: 0,25 | G72: 8
A73: I;II;do 37/0,25 | B73: I;II;do 37 | C73: I | D73: =D72 -> II | E73: do 37 | F73: 0,25 | G73: 10
A74: I;III;do 10/0,25 | B74: I;III;do 10 | C74: I | D74: III | E74: do 10 | F74: 0,25 | G74: 6
A75: I;III;do 15/0,25 | B75: I;III;do 15 | C75: I | D75: =D74 -> III | E75: do 15 | F75: 0,25 | G75: 6
A76: I;III;do 25/0,25 | B76: I;III;do 25 | C76: I | D76: =D75 -> III | E76: do 25 | F76: 0,25 | G76: 8
A77: I;III;do 37/0,25 | B77: I;III;do 37 | C77: I | D77: =D76 -> III | E77: do 37 | F77: 0,25 | G77: 8
A78: I;IV;do 10/0,25 | B78: I;IV;do 10 | C78: I | D78: IV | E78: do 10 | F78: 0,25 | G78: 6
A79: I;IV;do 15/0,25 | B79: I;IV;do 15 | C79: I | D79: =D78 -> IV | E79: do 15 | F79: 0,25 | G79: 6
A80: I;IV;do 25/0,25 | B80: I;IV;do 25 | C80: I | D80: =D79 -> IV | E80: do 25 | F80: 0,25 | G80: 6
A81: I;IV;do 37/0,25 | B81: I;IV;do 37 | C81: I | D81: =D80 -> IV | E81: do 37 | F81: 0,25 | G81: 6
A82: I;I;do 10/0,30 | B82: I;I;do 10 | C82: I | D82: I | E82: do 10 | F82: 0,30 | G82: 8
A83: I;I;do 15/0,30 | B83: I;I;do 15 | C83: I | D83: =D82 -> I | E83: do 15 | F83: =F82 -> 0,30 | G83: 8
A84: I;I;do 25/0,30 | B84: I;I;do 25 | C84: I | D84: =D83 -> I | E84: do 25 | F84: 0,30 | G84: 8
A85: I;I;do 37/0,30 | B85: I;I;do 37 | C85: I | D85: =D84 -> I | E85: do 37 | F85: 0,30 | G85: 8
A86: I;II;do 10/0,30 | B86: I;II;do 10 | C86: I | D86: II | E86: do 10 | F86: 0,30 | G86: 6
A87: I;II;do 15/0,30 | B87: I;II;do 15 | C87: I | D87: =D86 -> II | E87: do 15 | F87: 0,30 | G87: 6
A88: I;II;do 25/0,30 | B88: I;II;do 25 | C88: I | D88: =D87 -> II | E88: do 25 | F88: 0,30 | G88: 8
A89: I;II;do 37/0,30 | B89: I;II;do 37 | C89: I | D89: =D88 -> II | E89: do 37 | F89: 0,30 | G89: 8
A90: I;III;do 10/0,30 | B90: I;III;do 10 | C90: I | D90: III | E90: do 10 | F90: 0,30 | G90: 6
A91: I;III;do 15/0,30 | B91: I;III;do 15 | C91: I | D91: =D90 -> III | E91: do 15 | F91: 0,30 | G91: 6
A92: I;III;do 25/0,30 | B92: I;III;do 25 | C92: I | D92: =D91 -> III | E92: do 25 | F92: 0,30 | G92: 6
A93: I;III;do 37/0,30 | B93: I;III;do 37 | C93: I | D93: =D92 -> III | E93: do 37 | F93: 0,30 | G93: 6
A94: I;IV;do 10/0,30 | B94: I;IV;do 10 | C94: I | D94: IV | E94: do 10 | F94: 0,30 | G94: 6
A95: I;IV;do 15/0,30 | B95: I;IV;do 15 | C95: I | D95: =D94 -> IV | E95: do 15 | F95: 0,30 | G95: 6
A96: I;IV;do 25/0,30 | B96: I;IV;do 25 | C96: I | D96: =D95 -> IV | E96: do 25 | F96: 0,30 | G96: 6
A97: I;IV;do 37/0,30 | B97: I;IV;do 37 | C97: I | D97: =D96 -> IV | E97: do 37 | F97: 0,30 | G97: 6
A98: I;I;do 10/0,40 | B98: I;I;do 10 | C98: I | D98: I | E98: do 10 | F98: 0,40 | G98: 6
A99: I;I;do 15/0,40 | B99: I;I;do 15 | C99: I | D99: =D98 -> I | E99: do 15 | F99: =F98 -> 0,40 | G99: 6
A100: I;I;do 25/0,40 | B100: I;I;do 25 | C100: I | D100: =D99 -> I | E100: do 25 | F100: 0,40 | G100: 6
A101: I;I;do 37/0,40 | B101: I;I;do 37 | C101: I | D101: =D100 -> I | E101: do 37 | F101: 0,40 | G101: 6
A102: I;II;do 10/0,40 | B102: I;II;do 10 | C102: I | D102: II | E102: do 10 | F102: 0,40 | G102: 6
A103: I;II;do 15/0,40 | B103: I;II;do 15 | C103: I | D103: =D102 -> II | E103: do 15 | F103: 0,40 | G103: 6
A104: I;II;do 25/0,40 | B104: I;II;do 25 | C104: I | D104: =D103 -> II | E104: do 25 | F104: 0,40 | G104: 6
A105: I;II;do 37/0,40 | B105: I;II;do 37 | C105: I | D105: =D104 -> II | E105: do 37 | F105: 0,40 | G105: 6
A106: I;III;do 10/0,40 | B106: I;III;do 10 | C106: I | D106: III | E106: do 10 | F106: 0,40 | G106: 6
A107: I;III;do 15/0,40 | B107: I;III;do 15 | C107: I | D107: =D106 -> III | E107: do 15 | F107: 0,40 | G107: 6
A108: I;III;do 25/0,40 | B108: I;III;do 25 | C108: I | D108: =D107 -> III | E108: do 25 | F108: 0,40 | G108: 6
A109: I;III;do 37/0,40 | B109: I;III;do 37 | C109: I | D109: =D108 -> III | E109: do 37 | F109: 0,40 | G109: 6
A110: I;IV;do 10/0,40 | B110: I;IV;do 10 | C110: I | D110: IV | E110: do 10 | F110: 0,40 | G110: 6
A111: I;IV;do 15/0,40 | B111: I;IV;do 15 | C111: I | D111: =D110 -> IV | E111: do 15 | F111: 0,40 | G111: 6
A112: I;IV;do 25/0,40 | B112: I;IV;do 25 | C112: I | D112: =D111 -> IV | E112: do 25 | F112: 0,40 | G112: 6
A113: I;IV;do 37/0,40 | B113: I;IV;do 37 | C113: I | D113: =D112 -> IV | E113: do 37 | F113: 0,40 | G113: 6
A114: I;I;do 10/0,50 | B114: I;I;do 10 | C114: I | D114: I | E114: do 10 | F114: 0,50 | G114: 6
A115: I;I;do 15/0,50 | B115: I;I;do 15 | C115: I | D115: =D114 -> I | E115: do 15 | F115: =F114 -> 0,50 | G115: 6
A116: I;I;do 25/0,50 | B116: I;I;do 25 | C116: I | D116: =D115 -> I | E116: do 25 | F116: 0,50 | G116: 6
A117: I;I;do 37/0,50 | B117: I;I;do 37 | C117: I | D117: =D116 -> I | E117: do 37 | F117: 0,50 | G117: 6
A118: I;II;do 10/0,50 | B118: I;II;do 10 | C118: I | D118: II | E118: do 10 | F118: 0,50 | G118: 6
A119: I;II;do 15/0,50 | B119: I;II;do 15 | C119: I | D119: =D118 -> II | E119: do 15 | F119: 0,50 | G119: 6
A120: I;II;do 25/0,50 | B120: I;II;do 25 | C120: I | D120: =D119 -> II | E120: do 25 | F120: 0,50 | G120: 6
A121: I;II;do 37/0,50 | B121: I;II;do 37 | C121: I | D121: =D120 -> II | E121: do 37 | F121: 0,50 | G121: 6
A122: I;III;do 10/0,50 | B122: I;III;do 10 | C122: I | D122: III | E122: do 10 | F122: 0,50 | G122: 6
A123: I;III;do 15/0,50 | B123: I;III;do 15 | C123: I | D123: =D122 -> III | E123: do 15 | F123: 0,50 | G123: 6
A124: I;III;do 25/0,50 | B124: I;III;do 25 | C124: I | D124: =D123 -> III | E124: do 25 | F124: 0,50 | G124: 6
A125: I;III;do 37/0,50 | B125: I;III;do 37 | C125: I | D125: =D124 -> III | E125: do 37 | F125: 0,50 | G125: 6
A126: I;IV;do 10/0,50 | B126: I;IV;do 10 | C126: I | D126: IV | E126: do 10 | F126: 0,50 | G126: 6
A127: I;IV;do 15/0,50 | B127: I;IV;do 15 | C127: I | D127: =D126 -> IV | E127: do 15 | F127: 0,50 | G127: 6
A128: I;IV;do 25/0,50 | B128: I;IV;do 25 | C128: I | D128: =D127 -> IV | E128: do 25 | F128: 0,50 | G128: 6
A129: I;IV;do 37/0,50 | B129: I;IV;do 37 | C129: I | D129: =D128 -> IV | E129: do 37 | F129: 0,50 | G129: 6
A130: =B130&"/"&F130 -> II;I;do 10/0,10 | B130: =C130&";"&D130&";"&E130 -> II;I;do 10 | C130: II | D130: I | E130: do 10 | F130: 0,10 | G130: –
A131: II;I;do 15/0,10 | B131: II;I;do 15 | C131: II | D131: =D130 -> I | E131: do 15 | F131: =F130 -> 0,10 | G131: –
A132: II;I;do 25/0,10 | B132: II;I;do 25 | C132: II | D132: =D131 -> I | E132: do 25 | F132: 0,10 | G132: –
A133: II;I;do 37/0,10 | B133: II;I;do 37 | C133: II | D133: =D132 -> I | E133: do 37 | F133: 0,10 | G133: –
A134: II;II;do 10/0,10 | B134: II;II;do 10 | C134: II | D134: II | E134: do 10 | F134: 0,10 | G134: –
A135: II;II;do 15/0,10 | B135: II;II;do 15 | C135: II | D135: =D134 -> II | E135: do 15 | F135: 0,10 | G135: –
A136: II;II;do 25/0,10 | B136: II;II;do 25 | C136: II | D136: =D135 -> II | E136: do 25 | F136: 0,10 | G136: –
A137: II;II;do 37/0,10 | B137: II;II;do 37 | C137: II | D137: =D136 -> II | E137: do 37 | F137: 0,10 | G137: –
A138: II;III;do 10/0,10 | B138: II;III;do 10 | C138: II | D138: III | E138: do 10 | F138: 0,10 | G138: 16
A139: II;III;do 15/0,10 | B139: II;III;do 15 | C139: II | D139: =D138 -> III | E139: do 15 | F139: 0,10 | G139: –
A140: II;III;do 25/0,10 | B140: II;III;do 25 | C140: II | D140: =D139 -> III | E140: do 25 | F140: 0,10 | G140: –
A141: II;III;do 37/0,10 | B141: II;III;do 37 | C141: II | D141: =D140 -> III | E141: do 37 | F141: 0,10 | G141: –
A142: II;IV;do 10/0,10 | B142: II;IV;do 10 | C142: II | D142: IV | E142: do 10 | F142: 0,10 | G142: 10
A143: II;IV;do 15/0,10 | B143: II;IV;do 15 | C143: II | D143: =D142 -> IV | E143: do 15 | F143: 0,10 | G143: 12
A144: II;IV;do 25/0,10 | B144: II;IV;do 25 | C144: II | D144: =D143 -> IV | E144: do 25 | F144: 0,10 | G144: 16
A145: II;IV;do 37/0,10 | B145: II;IV;do 37 | C145: II | D145: =D144 -> IV | E145: do 37 | F145: 0,10 | G145: –
A146: II;I;do 10/0,12 | B146: II;I;do 10 | C146: II | D146: I | E146: do 10 | F146: 0,12 | G146: –
A147: II;I;do 15/0,12 | B147: II;I;do 15 | C147: II | D147: =D146 -> I | E147: do 15 | F147: =F146 -> 0,12 | G147: –
A148: II;I;do 25/0,12 | B148: II;I;do 25 | C148: II | D148: =D147 -> I | E148: do 25 | F148: 0,12 | G148: –
A149: II;I;do 37/0,12 | B149: II;I;do 37 | C149: II | D149: =D148 -> I | E149: do 37 | F149: 0,12 | G149: –
A150: II;II;do 10/0,12 | B150: II;II;do 10 | C150: II | D150: II | E150: do 10 | F150: 0,12 | G150: –
A151: II;II;do 15/0,12 | B151: II;II;do 15 | C151: II | D151: =D150 -> II | E151: do 15 | F151: 0,12 | G151: –
A152: II;II;do 25/0,12 | B152: II;II;do 25 | C152: II | D152: =D151 -> II | E152: do 25 | F152: 0,12 | G152: –
A153: II;II;do 37/0,12 | B153: II;II;do 37 | C153: II | D153: =D152 -> II | E153: do 37 | F153: 0,12 | G153: –
A154: II;III;do 10/0,12 | B154: II;III;do 10 | C154: II | D154: III | E154: do 10 | F154: 0,12 | G154: 12
A155: II;III;do 15/0,12 | B155: II;III;do 15 | C155: II | D155: =D154 -> III | E155: do 15 | F155: 0,12 | G155: 14
A156: II;III;do 25/0,12 | B156: II;III;do 25 | C156: II | D156: =D155 -> III | E156: do 25 | F156: 0,12 | G156: –
A157: II;III;do 37/0,12 | B157: II;III;do 37 | C157: II | D157: =D156 -> III | E157: do 37 | F157: 0,12 | G157: –
A158: II;IV;do 10/0,12 | B158: II;IV;do 10 | C158: II | D158: IV | E158: do 10 | F158: 0,12 | G158: 10
A159: II;IV;do 15/0,12 | B159: II;IV;do 15 | C159: II | D159: =D158 -> IV | E159: do 15 | F159: 0,12 | G159: 10
A160: II;IV;do 25/0,12 | B160: II;IV;do 25 | C160: II | D160: =D159 -> IV | E160: do 25 | F160: 0,12 | G160: 14
A161: II;IV;do 37/0,12 | B161: II;IV;do 37 | C161: II | D161: =D160 -> IV | E161: do 37 | F161: 0,12 | G161: 16
A162: II;I;do 10/0,15 | B162: II;I;do 10 | C162: II | D162: I | E162: do 10 | F162: 0,15 | G162: 16
A163: II;I;do 15/0,15 | B163: II;I;do 15 | C163: II | D163: =D162 -> I | E163: do 15 | F163: =F162 -> 0,15 | G163: –
A164: II;I;do 25/0,15 | B164: II;I;do 25 | C164: II | D164: =D163 -> I | E164: do 25 | F164: 0,15 | G164: –
A165: II;I;do 37/0,15 | B165: II;I;do 37 | C165: II | D165: =D164 -> I | E165: do 37 | F165: 0,15 | G165: –
A166: II;II;do 10/0,15 | B166: II;II;do 10 | C166: II | D166: II | E166: do 10 | F166: 0,15 | G166: 14
A167: II;II;do 15/0,15 | B167: II;II;do 15 | C167: II | D167: =D166 -> II | E167: do 15 | F167: 0,15 | G167: 16
A168: II;II;do 25/0,15 | B168: II;II;do 25 | C168: II | D168: =D167 -> II | E168: do 25 | F168: 0,15 | G168: –
A169: II;II;do 37/0,15 | B169: II;II;do 37 | C169: II | D169: =D168 -> II | E169: do 37 | F169: 0,15 | G169: –
A170: II;III;do 10/0,15 | B170: II;III;do 10 | C170: II | D170: III | E170: do 10 | F170: 0,15 | G170: 10
A171: II;III;do 15/0,15 | B171: II;III;do 15 | C171: II | D171: =D170 -> III | E171: do 15 | F171: 0,15 | G171: 12
A172: II;III;do 25/0,15 | B172: II;III;do 25 | C172: II | D172: =D171 -> III | E172: do 25 | F172: 0,15 | G172: 14
A173: II;III;do 37/0,15 | B173: II;III;do 37 | C173: II | D173: =D172 -> III | E173: do 37 | F173: 0,15 | G173: 16
A174: II;IV;do 10/0,15 | B174: II;IV;do 10 | C174: II | D174: IV | E174: do 10 | F174: 0,15 | G174: 8
A175: II;IV;do 15/0,15 | B175: II;IV;do 15 | C175: II | D175: =D174 -> IV | E175: do 15 | F175: 0,15 | G175: 8
A176: II;IV;do 25/0,15 | B176: II;IV;do 25 | C176: II | D176: =D175 -> IV | E176: do 25 | F176: 0,15 | G176: 12
A177: II;IV;do 37/0,15 | B177: II;IV;do 37 | C177: II | D177: =D176 -> IV | E177: do 37 | F177: 0,15 | G177: 12
A178: II;I;do 10/0,20 | B178: II;I;do 10 | C178: II | D178: I | E178: do 10 | F178: 0,20 | G178: 12
A179: II;I;do 15/0,20 | B179: II;I;do 15 | C179: II | D179: =D178 -> I | E179: do 15 | F179: =F178 -> 0,20 | G179: 14
A180: II;I;do 25/0,20 | B180: II;I;do 25 | C180: II | D180: =D179 -> I | E180: do 25 | F180: 0,20 | G180: 14
A181: II;I;do 37/0,20 | B181: II;I;do 37 | C181: II | D181: =D180 -> I | E181: do 37 | F181: 0,20 | G181: 16
A182: II;II;do 10/0,20 | B182: II;II;do 10 | C182: II | D182: II | E182: do 10 | F182: 0,20 | G182: 10
A183: II;II;do 15/0,20 | B183: II;II;do 15 | C183: II | D183: =D182 -> II | E183: do 15 | F183: 0,20 | G183: 12
A184: II;II;do 25/0,20 | B184: II;II;do 25 | C184: II | D184: =D183 -> II | E184: do 25 | F184: 0,20 | G184: 14
A185: II;II;do 37/0,20 | B185: II;II;do 37 | C185: II | D185: =D184 -> II | E185: do 37 | F185: 0,20 | G185: 14
A186: II;III;do 10/0,20 | B186: II;III;do 10 | C186: II | D186: III | E186: do 10 | F186: 0,20 | G186: 8
A187: II;III;do 15/0,20 | B187: II;III;do 15 | C187: II | D187: =D186 -> III | E187: do 15 | F187: 0,20 | G187: 10
A188: II;III;do 25/0,20 | B188: II;III;do 25 | C188: II | D188: =D187 -> III | E188: do 25 | F188: 0,20 | G188: 10
A189: II;III;do 37/0,20 | B189: II;III;do 37 | C189: II | D189: =D188 -> III | E189: do 37 | F189: 0,20 | G189: 12
A190: II;IV;do 10/0,20 | B190: II;IV;do 10 | C190: II | D190: IV | E190: do 10 | F190: 0,20 | G190: 6
A191: II;IV;do 15/0,20 | B191: II;IV;do 15 | C191: II | D191: =D190 -> IV | E191: do 15 | F191: 0,20 | G191: 6
A192: II;IV;do 25/0,20 | B192: II;IV;do 25 | C192: II | D192: =D191 -> IV | E192: do 25 | F192: 0,20 | G192: 8
A193: II;IV;do 37/0,20 | B193: II;IV;do 37 | C193: II | D193: =D192 -> IV | E193: do 37 | F193: 0,20 | G193: 10
A194: =B194&"/"&F194 -> II;I;do 10/0,25 | B194: =C194&";"&D194&";"&E194 -> II;I;do 10 | C194: II | D194: I | E194: do 10 | F194: 0,25 | G194: 10
A195: II;I;do 15/0,25 | B195: II;I;do 15 | C195: II | D195: =D194 -> I | E195: do 15 | F195: =F194 -> 0,25 | G195: 10
A196: II;I;do 25/0,25 | B196: II;I;do 25 | C196: II | D196: =D195 -> I | E196: do 25 | F196: 0,25 | G196: 12
A197: II;I;do 37/0,25 | B197: II;I;do 37 | C197: II | D197: =D196 -> I | E197: do 37 | F197: 0,25 | G197: 12
A198: II;II;do 10/0,25 | B198: II;II;do 10 | C198: II | D198: II | E198: do 10 | F198: 0,25 | G198: 8
A199: II;II;do 15/0,25 | B199: II;II;do 15 | C199: II | D199: =D198 -> II | E199: do 15 | F199: 0,25 | G199: 10
A200: II;II;do 25/0,25 | B200: II;II;do 25 | C200: II | D200: =D199 -> II | E200: do 25 | F200: 0,25 | G200: 10
... 441 more rows

Sheet param (hidden)
A1: n | B1: Podkladní materiál | C1: Kat. | D1: a | E1: b | G1: n | H1: Izolant | I1: gMb | J1: Rpanel,sm | K1: Rjoint,sm | L1: Rd,hm | M1: Třída | O1: Třída | P1: 0,10 | Q1: 0,12 | R1: 0,15 | S1: 0,20 | T1: 0,25 | U1: 0,30 | V1: 0,40 | W1: 0,50
A2: 1 | B2: beton prostý nebo vyztužený třídy C 12/15 až 50/60 | C2: A | D2: 1.5 | E2: 2.1 | G2: 1 | H2: minerální vlna | I2: 1.5 | J2: 0.25 | K2: 0.18 | L2: =kotvení*J2/I2 -> 0.1133333333 | M2: =INDEX($P$1:$W$1,1,MATCH(L2,$P$2:$W$2)) -> 0,10 | O2: Rd,hm > | P2: 0.1 | Q2: 0.115 | R2: 0.14 | S2: 0.19 | T2: 0.24 | U2: 0.29 | V2: 0.39 | W2: 0.49
A3: 2 | B3: plné cihly nebo kámen | C3: B | D3: 2.1 | E3: 2.9 | G3: 2 | H3: minerální vlna | I3: 1.5 | J3: 0.25 | K3: 0.18 | L3: =kotvení*J3/I3 -> 0.1133333333 | M3: =INDEX($P$1:$W$1,1,MATCH(L3,$P$2:$W$2)) -> 0,10 | O3: Rd,hm ≤ | P3: 0.115 | Q3: 0.14 | R3: 0.19 | S3: 0.24 | T3: 0.29 | U3: 0.39 | V3: 0.49 | W3: –
A4: 3 | B4: duté nebo děrované cihly nebo tvárnice | C4: C | D4: 1.8 | E4: 2.5 | G4: 3 | H4: pěnový polystyrén | I4: 1.2 | J4: 0.25 | K4: 0.18 | L4: =kotvení*J4/I4 -> 0.1416666667 | M4: =INDEX($P$1:$W$1,1,MATCH(L4,$P$2:$W$2)) -> 0,15 | O4: Min.tuhost | P4: 0,30 | T4: 0,40 | V4: 0,50 | W4: 0,70
A5: 4 | B5: beton z pórovitého kameniva třídy LAC 2 až 25 | C5: D | D5: 2.4 | E5: 3.2 | G5: 4 | H5: fenolická pěna | I5: 2.2 | J5: 0.38 | K5: 0.28 | L5: =kotvení*J5/I5 -> 0.1174545455 | M5: =INDEX($P$1:$W$1,1,MATCH(L5,$P$2:$W$2)) -> 0,12 | O5: talířku c
A6: 5 | B6: autoklávový pórobeton třídy P 2 až 7 | C6: E | D6: 1.8 | E6: 2.5
A7: 6 | B7: betonová vrstva sendvičových panelů min. 50 mm | C7: – | D7: 1.6 | E7: 2.3 | G7: x | H7: izolant | I7: montáž | J7: talířek | K7: Rpanel | L7: Rd,hm | M7: Třída
A8: 7 | B8: deskové materiály | C8: – | D8: 1.8 | E8: 2.5 | G8: =H8&I8&J8 -> minerální vlna Frontrock Max Epovrchová0 | H8: minerální vlna Frontrock Max E | I8: povrchová | J8: 0 | K8: 0.56 | L8: =0.68*K8/$I2 -> 0.2538666667 | M8: =INDEX($P$1:$W$1,1,MATCH(L8,$P$2:$W$2)) -> 0,25
A9: 8 | B9: jiný podkladní materiál | C9: – | D9: 2.4 | E9: 3.2 | G9: minerální vlna TF profipovrchová0 | H9: minerální vlna TF profi | I9: povrchová | J9: 0 | K9: 0.479 | L9: 0.2171466667 | M9: =INDEX($P$1:$W$1,1,MATCH(L9,$P$2:$W$2)) -> 0,20
G10: pěnový polystyrén 70Fpovrchová0 | H10: pěnový polystyrén 70F | I10: povrchová | J10: 0 | K10: 0.9 | L10: 0.51 | M10: 0,50
A11: n | B11: Podkladní materiál | C11: Kat. | D11: a | E11: b | G11: minerální vlna Frontrock Max Epovrchová100 | H11: minerální vlna Frontrock Max E | I11: povrchová | J11: 100 | K11: 0.794 | L11: =0.68*K11/$I2 -> 0.3599466667 | M11: 0,30
A12: 1 | B12: (A) beton | C12: A | D12: 1.5 | E12: 2.1 | G12: minerální vlna TF profipovrchová100 | H12: minerální vlna TF profi | I12: povrchová | J12: 100 | K12: 0.781 | L12: 0.3540533333 | M12: 0,30
A13: 2 | B13: (B) plná pálená cihla | C13: B | D13: 2.1 | E13: 2.9 | G13: =H13&I13&J13 -> minerální vlna Frontrock Max Ezápustná0 | H13: minerální vlna Frontrock Max E | I13: zápustná | J13: 0 | K13: 0.368 | L13: =0.68*K13/$I2 -> 0.1668266667 | M13: =INDEX($P$1:$W$1,1,MATCH(L13,$P$2:$W$2)) -> 0,15
A14: 3 | B14: (B) plná tvárnice z lehčeného betonu | C14: B | D14: 2.1 | E14: 2.9 | G14: =H14&I14&J14 -> minerální vlna TF profizápustná0 | H14: minerální vlna TF profi | I14: zápustná | J14: 0 | K14: 0.423 | L14: =0.68*K14/$I3 -> 0.19176 | M14: =INDEX($P$1:$W$1,1,MATCH(L14,$P$2:$W$2)) -> 0,20
A15: 4 | B15: (B) vápenopísková cihla | C15: B | D15: 2.1 | E15: 2.9 | G15: =H15&I15&J15 -> pěnový polystyrén 70Fzápustná0 | H15: pěnový polystyrén 70F | I15: zápustná | J15: 0 | K15: 0.76 | L15: =0.68*K15/$I4 -> 0.4306666667 | M15: =INDEX($P$1:$W$1,1,MATCH(L15,$P$2:$W$2)) -> 0,40
A16: 5 | B16: (C) děrovaná cihla | C16: C | D16: 1.8 | E16: 2.5 | G16: =H16&I16&J16 -> minerální vlna Frontrock Max Ezápustná100 | H16: minerální vlna Frontrock Max E | I16: zápustná | J16: 100 | K16: 0.849 | L16: =0.68*K16/$I2 -> 0.38488 | M16: =INDEX($P$1:$W$1,1,MATCH(L16,$P$2:$W$2)) -> 0,30
A17: 6 | B17: (C) děrovaná/dutinová tvárnice | C17: C | D17: 1.8 | E17: 2.5 | G17: =H17&I17&J17 -> minerální vlna TF profizápustná100 | H17: minerální vlna TF profi | I17: zápustná | J17: 100 | K17: 0.812 | L17: =0.68*K17/$I3 -> 0.3681066667 | M17: =INDEX($P$1:$W$1,1,MATCH(L17,$P$2:$W$2)) -> 0,30
A18: 7 | B18: (D) dutá tvárnice z lehčeného betonu | C18: D | D18: 2.4 | E18: 3.2
A19: 8 | B19: (D) lehčený beton s pórovitým kamenivem | C19: D | D19: 2.4 | E19: 3.2
A20: 9 | B20: (D) mezerovitý lehčený beton | C20: D | D20: 2.4 | E20: 3.2
A21: 10 | B21: (E) pórobeton | C21: E | D21: 1.8 | E21: 2.5
H23: Rd,hm | I23: = | J23: 0,68 × Rpanel / gMb | N23: (4)
H24: Rd,hm | I24: = | J24: NRk / gMc | N24: (5)
H26: Rd,hm | I26: ... | J26: návrhová odolnost hmoždinky vůči účinkům sání větru
H27: Rpanel | I27: ... | J27: průměrná hodnota odolnosti proti protažení na 1 hmoždinku (stanoveno pro daný izolant)
H28: gMb | I28: ... | J28: součinitel bezpečnosti upevnění při spolupůsobení hmoždinky s deskami tepelné izolace (uveden výrobcem izolace)
H29: NRk | I29: ... | J29: charakteristická hodnota únosnosti zvoleného typu hmoždinky (uvedená výrobcem hmoždinky)
H30: gMc | I30: ... | J30: součinitel bezpečnosti upevnění při montáži hmoždinky (stanoveno pro daný podkladový materiál a způsob montáže)
